bitfinex/quotes_ETHUSD_20240823
["timestamp","ask_amount","ask_price","bid_price","bid_amount"]
[1724412971247,3.75956,2659.9,2659.3,3.76031]
[1724412971537,3.75956,2659.9,2659.3,5.261398]
[1724412971742,7.51917,2659.9,2659.3,5.261398]
[1724412971931,3.75956,2659.9,2659.3,5.261398]
[1724412972540,7.51918,2659.9,2659.3,5.261398]
[1724412972750,3.75956,2659.9,2659.3,5.261398]
[1724412973641,3.75956,2659.9,2659.4,0.5261398]
[1724412973813,7.51918,2659.9,2659.4,0.5261398]
[1724412974147,3.75956,2659.9,2659.4,0.5261398]
[1724412974852,7.51917,2659.9,2659.4,0.5261398]
[1724412975038,3.75972,2659.8,2659.3,5.261398]
[1724412975226,3.76008,2659.6,2659.1,7.49]
[1724412975548,3.76026,2659.4,2659.1,7.49]
[1724412975725,3.76026,2659.4,2658.9,3.76085]
[1724412975924,3.76026,2659.4,2658.7,11.25114]
[1724412976136,3.7606,2659.2,2658.8,1.363074]
[1724412976457,3.7607,2659.1,2658.7,7.49]
[1724412976812,3.7606,2659.2,2658.7,7.49]
[1724412977011,7.52126,2659.2,2658.7,7.49]
[1724412977213,3.7606,2659.2,2658.7,7.49]
[1724412978051,3.7606,2659.2,2658.7,11.25123]
[1724412978215,3.7606,2659.2,2658.7,12.752483]
[1724412978847,3.7606,2659.2,2658.7,15.018183]
[1724412979111,3.76046,2659.3,2658.7,15.018183]
[1724412979521,2.3766,2659.5,2658.7,11.256953]
[1724412979724,3.76005,2659.6,2659.0,3.7608]
[1724412979926,3.76005,2659.6,2659.0,3.76073]
[1724412980363,3.76004,2659.6,2659.0,3.76073]
[1724412980724,10.01837,2659.8,2659.1,3.76053]
[1724412980923,3.75982,2659.7,2659.1,3.76053]
[1724412982067,3.75996,2659.6,2659.0,4.512907]
[1724412982225,3.75996,2659.6,2659.0,8.273627]
[1724412982424,3.75996,2659.6,2659.1,0.8273627]
[1724412982625,3.75996,2659.6,2659.1,4.5880327]
[1724412982822,3.75976,2659.8,2659.2,6.06882]
[1724412983163,3.75976,2659.8,2659.2,6.06874]
[1724412984241,7.51953,2659.8,2659.2,7.13442527]
[1724412985066,3.75984,2659.7,2659.2,3.37398527]
[1724412986378,3.75984,2659.7,2659.2,2.3083]
[1724412986662,3.76018,2659.5,2658.9,6.04401]
[1724412987165,3.76025,2659.4,2658.9,6.04401]
[1724412988855,3.7601,2659.5,2658.9,6.04401]
[1724412989182,3.7601,2659.5,2659.0,4.365141]
[1724412989892,7.51978,2659.7,2659.0,4.365141]
[1724412990089,3.75983,2659.7,2659.1,3.76058]
[1724412990389,3.75983,2659.7,2659.2,3.76051]
[1724412991588,3.75983,2659.7,2659.2,3.76045]
[1724412992974,7.51974,2659.7,2659.2,3.76045]
[1724412993177,3.75983,2659.7,2659.2,3.76045]
[1724412994065,7.51974,2659.7,2659.2,3.76045]
[1724412994449,3.75983,2659.7,2659.1,3.76066]
[1724412994799,7.51974,2659.7,2659.1,4.8015571]
[1724412995612,3.75983,2659.7,2659.1,4.8015571]
[1724412995766,7.51977,2659.7,2659.1,4.8015571]
[1724412996167,3.75983,2659.7,2659.1,4.8015571]
[1724412996967,3.75947,2660.0,2659.4,3.76012]
[1724412997196,3.75947,2660.0,2659.5,0.376012]
[1724413004922,3.75934,2660.1,2659.5,0.376012]
[1724413005122,3.75934,2660.1,2659.5,4.136012]
[1724413005417,9.96103,2660.3,2659.7,6.2421]
[1724413005603,6.20195,2660.3,2659.7,3.5201132]
[1724413005932,6.20195,2660.3,2659.3,7.49]
[1724413005933,6.13572,2659.9,2659.3,7.49]
[1724413006630,6.13572,2659.9,2659.1,2.4823]
[1724413006631,2.3761,2659.9,2659.1,2.4823]
[1724413006816,3.76021,2659.5,2658.9,3.76087]
[1724413007015,3.76021,2659.5,2658.9,5.120607]
[1724413007633,3.76018,2659.5,2658.9,5.120607]
[1724413009131,7.52038,2659.5,2658.9,5.120607]
[1724413009502,3.76018,2659.5,2658.9,5.120607]
[1724413009702,3.76018,2659.5,2658.9,1.359737]
[1724413009703,3.76039,2659.3,2658.9,1.359737]
[1724413010330,3.76039,2659.3,2658.8,2.3465]
[1724413010331,3.76054,2659.2,2658.8,2.3465]
[1724413010538,3.76054,2659.2,2658.7,7.49]
[1724413012552,3.76039,2659.3,2658.7,11.25123]
[1724413012761,6.02307,2659.5,2658.7,7.49]
[1724413012963,6.02307,2659.5,2658.9,3.76084]
[1724413013329,6.02307,2659.5,2659.0,3.7608]
[1724413013656,7.51986,2659.7,2659.0,3.76072]
[1724413013827,7.51984,2659.7,2659.0,6.24792]
[1724413014025,3.75996,2659.6,2659.0,6.24792]
[1724413014207,3.75996,2659.6,2659.0,10.00864]
[1724413014403,3.75996,2659.6,2659.0,7.3612924]
[1724413014666,2.4082,2659.8,2659.0,3.6005724]
[1724413014829,3.75957,2659.9,2659.3,3.7603]
[1724413015151,3.75975,2659.8,2659.2,3.7604]
[1724413015563,3.75957,2659.9,2659.3,3.76035]
[1724413015786,3.75957,2659.9,2659.0,2.4872]
[1724413015920,3.75944,2660.0,2659.4,6.17385]
[1724413016126,3.75955,2659.9,2659.4,6.17385]
[1724413017959,7.51918,2659.9,2659.4,6.17385]
[1724413018257,3.75955,2659.9,2659.4,6.17385]
[1724413019447,7.51922,2659.9,2659.4,2.4137]
[1724413020229,7.51922,2659.9,2659.4,3.407149]
[1724413020419,7.51918,2659.9,2659.4,3.407149]
[1724413020655,7.51919,2659.9,2659.4,3.407149]
[1724413021065,3.75969,2659.8,2659.4,3.407149]
[1724413023315,3.75969,2659.8,2659.4,2.4137]
[1724413024702,6.24395,2660.1,2659.4,2.4137]
[1724413024703,3.75952,2660.0,2659.4,2.4137]
[1724413024891,3.75952,2660.0,2659.4,6.1739]
[1724413025093,3.75935,2660.1,2659.4,6.1739]
[1724413025094,3.75954,2659.9,2659.4,6.1739]
[1724413025708,3.75935,2660.1,2659.5,3.7601]
[1724413025884,3.75949,2660.0,2659.5,0.993397]
[1724413027919,2.475,2660.3,2659.5,0.993397]
[1724413027920,3.75955,2659.9,2659.5,0.993397]
[1724413028127,3.75955,2659.9,2659.4,2.4137]
[1724413028128,3.75969,2659.8,2659.4,2.4137]
[1724413028808,3.75969,2659.8,2659.2,6.16672]
[1724413028989,3.75969,2659.8,2659.3,4.377042]
[1724413030327,3.75969,2659.8,2659.3,0.616672]
[1724413030524,3.75983,2659.7,2659.3,0.616672]
[1724413032387,3.76019,2659.5,2659.0,7.49]
[1724413032589,6.09959,2659.5,2659.0,7.49]
[1724413033126,2.3394,2659.5,2659.0,11.25079]
[1724413033329,2.3394,2659.5,2659.0,9.525529]
[1724413033827,3.76024,2659.4,2659.0,9.525529]
[1724413034426,6.0995,2659.5,2659.0,9.525529]
[1724413035326,6.0995,2659.5,2659.0,7.49]
[1724413035327,3.76034,2659.4,2659.0,7.49]
[1724413035908,3.76049,2659.3,2659.0,7.49]
[1724413036107,3.76049,2659.3,2658.8,3.76107]
[1724413037059,3.76034,2659.4,2658.7,2.3435]
[1724413037060,3.76053,2659.2,2658.7,2.3435]
[1724413037462,3.76053,2659.2,2658.7,6.10473]
[1724413037652,3.76053,2659.2,2658.8,0.986598]
[1724413039066,3.76053,2659.2,2658.5,3.76144]
[1724413039067,3.76084,2659.0,2658.5,3.76144]
[1724413039228,6.15444,2659.0,2658.5,3.76144]
[1724413040361,9.91533,2659.0,2658.5,3.76144]
[1724413040550,6.15444,2659.0,2658.5,3.76144]
[1724413040865,6.15444,2659.0,2658.6,0.376144]
[1724413041364,6.15444,2659.0,2658.3,3.76178]
[1724413041365,3.76117,2658.8,2658.3,3.76178]
[1724413045170,6.15448,2659.0,2658.4,3.76159]
[1724413046373,9.91537,2659.0,2658.4,3.76159]
[1724413046755,3.76097,2658.9,2658.4,3.76159]
[1724413047084,3.76097,2658.9,2658.4,4.386669]
[1724413048454,3.76097,2658.9,2658.4,0.625079]
[1724413049989,3.81118796,2659.3,2658.5,6.12671]
[1724413049990,3.76062,2659.2,2658.5,6.12671]
[1724413050152,6.15719,2659.3,2658.7,3.76116]
[1724413050350,3.76056,2659.2,2658.7,4.373806]
[1724413051092,3.76067,2659.1,2658.7,0.612646]
[1724413051918,3.76055,2659.2,2658.7,4.373856]
[1724413052342,3.76055,2659.2,2658.8,0.4373856]
[1724413052847,3.76039,2659.3,2658.9,2.4594]
[1724413053047,6.05163,2659.5,2658.9,6.22027]
[1724413053262,3.76013,2659.5,2658.9,6.22027]
[1724413053464,3.76026,2659.4,2658.9,6.22027]
[1724413053736,3.75997,2659.6,2659.1,3.76065]
[1724413054100,3.75997,2659.6,2659.2,2.3046]
[1724413054914,3.75982,2659.7,2659.2,2.3046]
[1724413055211,3.75982,2659.7,2659.2,6.06512]
[1724413055396,3.75982,2659.7,2659.2,6.74572899]
[1724413056210,3.75982,2659.7,2659.2,2.98520899]
[1724413057737,3.75998,2659.6,2659.2,2.98520899]
[1724413059615,7.52003,2659.6,2659.2,2.98520899]
[1724413059827,3.75998,2659.6,2659.2,2.98520899]
[1724413060341,3.75978,2659.8,2659.2,2.98520899]
[1724413060641,3.75978,2659.8,2659.3,4.4349559]
[1724413060642,3.75972,2659.8,2659.3,4.4349559]
[1724413061342,2.4806,2660.0,2659.6,2.3122]
[1724413061343,3.7594,2660.0,2659.6,2.3122]
[1724413064433,3.7594,2660.0,2659.4,2.2998]
[1724413064714,3.75968,2659.8,2659.4,2.2998]
[1724413064915,3.75977,2659.8,2659.2,2.4573]
[1724413065267,7.52012,2659.6,2659.2,2.4573]
[1724413065412,3.76013,2659.5,2659.2,2.4573]
[1724413066050,3.76005,2659.6,2659.2,2.4573]
[1724413066665,3.76021,2659.5,2659.1,7.49]
[1724413066946,3.76021,2659.5,2659.0,0.66576556]
[1724413067320,3.76055,2659.2,2658.7,9.7653]
[1724413068015,3.76055,2659.2,2658.7,13.52652]
[1724413068955,2.4473,2659.4,2658.7,17.28768]
[1724413069251,3.7604,2659.3,2658.8,3.76105]
[1724413069414,3.7604,2659.3,2658.9,1.728751]
[1724413069758,3.7602,2659.5,2659.0,3.76078]
[1724413070113,3.76019,2659.5,2658.9,5.489701]
[1724413070650,3.76025,2659.4,2658.9,5.489701]
[1724413071912,3.76011,2659.5,2658.9,5.489701]
[1724413072423,3.76011,2659.5,2659.0,0.9250751]
[1724413072749,10.00365,2659.8,2659.2,3.76046]
[1724413072909,3.75976,2659.8,2659.3,3.76038]
[1724413073115,6.24358,2660.0,2659.4,3.76019]
[1724413073314,10.00309,2660.0,2659.4,3.76019]
[1724413073535,3.75956,2659.9,2659.4,4.512247]
[1724413073939,3.75956,2659.9,2659.4,0.752057]
[1724413074256,3.75956,2659.9,2659.3,3.76031]
[1724413075156,6.24358,2660.0,2659.3,3.76031]
[1724413075157,3.7597,2659.8,2659.3,3.76031]
[1724413077730,7.51946,2659.8,2659.3,3.76031]
[1724413078359,3.7597,2659.8,2659.3,3.76031]
[1724413078558,3.7597,2659.8,2659.3,4.759597]
[1724413078721,7.51949,2659.8,2659.3,4.759597]
[1724413079863,7.51947,2659.8,2659.3,4.759597]
[1724413080182,3.7597,2659.8,2659.3,4.759597]
[1724413080325,7.519,2660.0,2659.4,2.472]
[1724413080526,3.75958,2659.9,2659.4,2.472]
[1724413080757,3.7597,2659.8,2659.4,2.472]
[1724413083366,7.51897,2660.0,2659.4,6.23217]
[1724413083748,7.51896,2660.0,2659.4,6.23217]
[1724413083955,7.51896,2660.0,2659.5,0.999247]
[1724413084769,3.75954,2659.9,2659.5,0.999247]
[1724413085090,5.4841,2660.3,2659.6,3.75994]
[1724413085091,3.75929,2660.1,2659.6,3.75994]
[1724413085295,3.75929,2660.1,2659.7,2.2871]
[1724413085593,3.75929,2660.1,2659.8,0.604704]
[1724413085788,3.75929,2660.1,2659.7,2.2871]
[1724413086991,3.75908,2660.3,2659.7,6.04692]
[1724413086992,3.75912,2660.2,2659.7,6.04692]
[1724413087358,3.75912,2660.2,2659.7,9.80666]
[1724413087688,3.75912,2660.2,2659.7,6.04684]
[1724413087895,3.75884,2660.4,2659.8,3.75967]
[1724413088076,7.51776,2660.4,2659.8,4.740321]
[1724413088462,7.51776,2660.4,2659.8,4.81543623]
[1724413088463,3.75884,2660.4,2659.8,4.81543623]
[1724413088693,3.75869,2660.5,2659.8,4.740251]
[1724413088898,3.75869,2660.5,2660.0,3.75938]
[1724413089480,3.75862,2660.6,2660.0,3.75929]
[1724413089676,7.51726,2660.6,2660.1,3.75924]
[1724413090000,3.75871,2660.5,2660.0,3.75939]
[1724413090374,3.75908,2660.3,2659.9,2.4782]
[1724413090571,3.75908,2660.3,2659.5,2.4782]
[1724413090772,3.75954,2659.9,2659.3,9.8841]
[1724413090978,3.75979,2659.8,2659.3,9.8841]
[1724413091878,7.51916,2659.9,2659.3,13.64438]
[1724413092081,3.75977,2659.8,2659.3,13.64438]
[1724413092611,3.75982,2659.7,2659.3,13.64438]
[1724413093067,7.51918,2659.9,2659.3,13.64438]
[1724413093797,3.75968,2659.8,2659.3,13.64438]
[1724413095803,3.75992,2659.7,2659.3,9.8841]
[1724413096108,7.51984,2659.7,2659.3,9.8841]
[1724413096275,3.75992,2659.7,2659.3,9.8841]
[1724413096600,3.75996,2659.6,2659.3,7.49]
[1724413096823,3.75992,2659.7,2659.1,9.82783]
[1724413097026,3.75992,2659.7,2659.2,1.07529051]
[1724413097184,7.51983,2659.7,2659.2,1.07529051]
[1724413097525,3.76,2659.6,2659.2,1.07529051]
[1724413098627,3.75972,2659.8,2659.2,4.83581051]
[1724413099290,3.75997,2659.6,2659.2,1.07529051]
[1724413100093,3.76011,2659.5,2659.1,2.3067]
[1724413100558,3.76011,2659.5,2658.9,9.218751]
[1724413100559,3.76025,2659.4,2658.9,9.9617]
[1724413100842,2.4473,2659.7,2658.9,7.49]
[1724413100843,3.76016,2659.5,2658.9,7.49]
[1724413101011,3.76034,2659.4,2658.9,7.49]
[1724413101416,3.76034,2659.4,2658.9,11.25094]
[1724413102716,3.76011,2659.5,2659.0,3.76078]
[1724413103048,3.75992,2659.7,2659.1,2.3845]
[1724413103242,6.01884,2659.9,2659.2,7.52097]
[1724413103417,3.75964,2659.9,2659.4,3.76024]
[1724413103627,3.75964,2659.9,2659.5,2.4764]
[1724413103941,6.23806,2660.1,2659.5,2.4764]
[1724413104115,3.75968,2659.8,2659.5,2.4764]
[1724413104804,7.51944,2659.8,2659.5,2.4764]
[1724413105005,3.75985,2659.7,2659.3,2.2566]
[1724413106409,3.75985,2659.7,2659.3,3.234373]
[1724413106805,3.75985,2659.7,2658.9,9.7439]
[1724413106806,3.76026,2659.4,2658.9,9.7439]
[1724413107112,7.52062,2659.4,2658.9,2.2539]
[1724413107326,7.52059,2659.4,2658.9,2.2539]
[1724413107707,3.76026,2659.4,2658.9,2.2539]
[1724413108010,3.76026,2659.4,2658.9,4.47951]
[1724413109037,3.76026,2659.4,2658.9,8.24046]
[1724413111907,7.52059,2659.4,2658.9,6.01485]
[1724413112215,3.76026,2659.4,2658.9,6.01485]
[1724413115625,7.52059,2659.4,2658.9,6.01485]
[1724413115864,3.76026,2659.4,2658.9,6.01485]
[1724413117566,7.52058,2659.4,2658.9,6.01485]
[1724413118227,3.76026,2659.4,2658.9,6.01485]
[1724413118534,3.76005,2659.6,2658.9,6.992388]
[1724413118935,3.76022,2659.5,2658.9,6.992388]
[1724413119141,3.76005,2659.6,2658.9,6.992388]
[1724413119341,3.76005,2659.6,2658.9,6.01478]
[1724413119535,3.76027,2659.4,2658.9,6.01478]
[1724413119944,7.5206,2659.4,2658.9,6.01478]
[1724413120338,3.76027,2659.4,2658.9,6.01478]
[1724413120639,7.5206,2659.4,2658.9,6.01478]
[1724413121538,3.76027,2659.4,2658.9,6.01478]
[1724413121859,3.76045,2659.3,2658.8,3.76108]
[1724413122540,3.76025,2659.4,2658.9,3.76093]
[1724413123430,3.76025,2659.4,2658.7,6.2029]
[1724413123957,3.76038,2659.3,2658.8,3.76102]
[1724413124472,3.76102,2658.9,2658.5,2.4859]
[1724413124767,3.76102,2658.9,2658.0,7.49]
[1724413124768,3.7614,2658.6,2658.3,2.4859]
[1724413124968,3.7614,2658.6,2658.1,2.4859]
[1724413125265,3.7614,2658.6,2658.0,3.76209]
[1724413125266,3.76175,2658.4,2657.8,6.04781]
[1724413125468,3.76175,2658.4,2657.8,7.028861]
[1724413125764,7.5235,2658.4,2657.8,7.028861]
[1724413125931,3.76175,2658.4,2657.8,7.028861]
[1724413126333,3.76175,2658.4,2657.9,3.76235]
[1724413126635,3.76175,2658.4,2657.9,4.8414711]
[1724413127170,7.52292,2658.6,2658.0,3.7622]
[1724413127368,3.76138,2658.6,2658.0,3.7622]
[1724413127530,3.76121,2658.8,2658.2,6.12047]
[1724413128168,3.7609,2659.0,2658.2,6.12047]
[1724413128666,3.76111,2658.8,2658.3,3.76176]
[1724413129081,7.57144796,2659.4,2658.1,0.48413211]
[1724413129082,3.76061,2659.2,2658.5,2.3696]
[1724413129231,3.76061,2659.2,2658.7,3.76122]
[1724413129434,3.76052,2659.3,2658.6,3.7613]
[1724413129695,3.76056,2659.2,2658.6,3.76128]
[1724413129867,3.76067,2659.1,2658.6,3.76128]
[1724413130036,3.76067,2659.1,2658.6,4.21613092]
[1724413130661,7.52119,2659.2,2658.6,4.21612092]
[1724413131678,3.76056,2659.2,2658.6,7.97742092]
[1724413131861,3.76056,2659.2,2658.7,3.76111]
[1724413132480,7.52117,2659.2,2658.7,3.76111]
[1724413132650,3.76056,2659.2,2658.8,0.42159609]
[1724413132855,7.52117,2659.2,2658.8,0.42159609]
[1724413133161,3.76056,2659.2,2658.8,0.42159609]
[1724413134053,3.76056,2659.2,2658.6,0.45485092]
[1724413134442,3.76056,2659.2,2658.7,3.76121]
[1724413134655,7.52118,2659.2,2658.7,3.76121]
[1724413134852,3.76056,2659.2,2658.7,3.76121]
[1724413135680,7.52121,2659.2,2658.6,4.21615092]
[1724413135978,3.76056,2659.2,2658.6,4.21615092]
[1724413136180,3.76081,2659.0,2658.6,0.45485092]
[1724413136341,3.76081,2659.0,2658.5,6.744204]
[1724413137072,3.76081,2659.0,2658.5,2.982724]
[1724413137073,3.76109,2658.8,2658.5,2.982724]
[1724413137385,7.52231,2658.8,2658.3,2.4582]
[1724413137883,3.76109,2658.8,2658.3,2.4582]
[1724413138179,3.7609,2659.0,2658.4,3.76158]
[1724413138379,3.7609,2659.0,2658.5,4.759667]
[1724413138581,3.7609,2659.0,2658.5,4.759577]
[1724413138878,3.7609,2659.0,2658.6,2.4599]
[1724413139481,3.76076,2659.1,2658.6,6.22122]
[1724413140381,3.76081,2659.0,2658.6,2.4599]
[1724413141594,3.76081,2659.0,2658.6,6.22125]
[1724413142181,3.76063,2659.2,2658.7,3.76121]
[1724413142489,6.10192,2659.7,2659.0,2.3709]
[1724413142688,3.7602,2659.5,2659.0,2.3709]
[1724413142902,3.76026,2659.4,2659.0,2.3709]
[1724413143186,7.52044,2659.5,2659.0,6.13171]
[1724413143695,3.76025,2659.4,2659.0,2.3709]
[1724413144554,3.7604,2659.3,2659.0,2.3709]
[1724413144754,3.7604,2659.3,2658.7,3.7611]
[1724413144755,3.7604,2659.3,2658.8,3.76107]
[1724413144951,3.7604,2659.3,2658.7,6.2264]
[1724413145178,3.76068,2659.1,2658.7,6.2264]
[1724413145365,3.76068,2659.1,2658.7,2.4653]
[1724413145683,7.52145,2659.1,2658.7,2.4653]
[1724413145883,3.76085,2659.0,2658.5,3.76142]
[1724413146089,3.76085,2659.0,2658.5,6.25112]
[1724413147247,3.76085,2659.0,2658.5,11.013858]
[1724413147686,3.76085,2659.0,2658.5,7.252408]
[1724413148092,0.58986792,2658.9,2658.5,7.252408]
[1724413148390,0.58986792,2658.9,2658.5,11.013848]
[1724413148563,0.58986792,2658.9,2658.6,3.76135]
[1724413148891,0.58986792,2658.9,2658.7,1.1013758]
[1724413152981,0.58986792,2658.9,2658.5,7.252408]
[1724413154159,4.35083792,2658.9,2658.3,6.24426]
[1724413154364,6.68883792,2658.9,2658.4,3.76165]
[1724413155007,3.76124,2658.7,2658.1,6.76199]
[1724413155298,3.76124,2658.7,2658.1,6.701389]
[1724413156617,3.76124,2658.7,2658.3,3.76179]
[1724413156761,3.76111,2658.8,2658.3,3.76179]
[1724413159501,4.35086792,2658.9,2658.3,3.76172]
[1724413159723,4.35086792,2658.9,2658.3,4.4318319]
[1724413160019,4.35086792,2658.9,2658.4,3.76164]
[1724413160222,8.11189792,2658.9,2658.4,3.76164]
[1724413160565,8.11189792,2658.9,2658.3,4.4318319]
[1724413161182,4.35086792,2658.9,2658.3,4.4318219]
[1724413161507,0.58986792,2658.9,2658.5,3.76144]
[1724413161728,0.58986792,2658.9,2658.5,2.4844]
[1724413162026,0.58986792,2658.9,2658.7,3.76114]
[1724413162769,3.76056,2659.2,2658.7,3.76114]
[1724413163385,3.76056,2659.2,2658.7,7.5223]
[1724413163792,3.76056,2659.2,2658.7,3.76114]
[1724413164769,0.5898496,2659.3,2658.9,3.76094]
[1724413164973,3.76031,2659.4,2658.9,6.24424]
[1724413165395,7.52064,2659.4,2658.9,6.24424]
[1724413165910,3.76041,2659.3,2658.9,6.24424]
[1724413166112,3.76041,2659.3,2658.9,2.4833]
[1724413167290,3.7606,2659.2,2658.7,6.1061]
[1724413168112,7.52121,2659.2,2658.7,6.1061]
[1724413168321,3.7606,2659.2,2658.7,6.1061]
[1724413170385,3.7606,2659.2,2658.7,9.86726]
[1724413171611,3.7606,2659.2,2658.7,6.1061]
[1724413171861,3.7606,2659.2,2658.7,10.85401]
[1724413171981,3.76039,2659.3,2658.8,3.76106]
[1724413172577,3.76056,2659.2,2658.8,3.76106]
[1724413173914,3.76056,2659.2,2658.7,2.345]
[1724413174116,9.94321,2659.2,2658.7,6.10623]
[1724413174614,3.76097,2658.9,2658.5,6.18881]
[1724413177320,3.76067,2659.1,2658.6,3.76136]
[1724413177500,7.52145,2659.1,2658.6,3.76136]
[1724413177693,3.76067,2659.1,2658.6,3.76136]
[1724413178517,3.76067,2659.1,2658.6,5.54969522]
[1724413180129,3.76077,2659.1,2658.4,11.69482219]
[1724413180329,3.76105,2658.9,2658.4,11.69482219]
[1724413181193,7.52152,2659.1,2658.5,3.76139]
[1724413181398,3.76081,2659.0,2658.5,3.76139]
[1724413181599,7.52154,2659.1,2658.6,3.76136]
[1724413182025,3.76075,2659.1,2658.6,3.76136]
[1724413182225,6.18253,2659.2,2658.6,3.76136]
[1724413182420,6.18253,2659.2,2658.7,6.0781]
[1724413182800,6.18253,2659.2,2658.7,3.7611]
[1724413183002,3.76069,2659.1,2658.6,3.76136]
[1724413183629,3.76069,2659.1,2658.7,3.76123]
[1724413183815,2.422,2659.2,2658.7,3.76115]
[1724413184015,6.18253,2659.2,2658.7,3.76115]
[1724413184638,6.18253,2659.2,2658.7,7.52231]
[1724413184947,3.76,2659.6,2658.7,7.52231]
[1724413184948,6.1826,2659.5,2659.0,3.76079]
[1724413185135,6.1826,2659.5,2658.9,6.15726]
[1724413185647,3.76025,2659.4,2658.9,6.15726]
[1724413187013,3.76025,2659.4,2658.9,9.91814]
[1724413187214,3.76015,2659.5,2659.0,3.76079]
[1724413187512,6.17157,2660.0,2659.2,2.2679]
[1724413187739,6.17157,2660.0,2659.5,3.76002]
[1724413187933,6.17157,2660.0,2659.5,7.52005]
[1724413187934,3.75947,2660.0,2659.5,7.52005]
[1724413188244,3.75947,2660.0,2659.5,3.76002]
[1724413188449,9.93049,2660.2,2659.6,3.75995]
[1724413188751,3.75928,2660.1,2659.6,6.06845]
[1724413189239,3.7594,2660.0,2659.6,2.3085]
[1724413190352,3.7594,2660.0,2659.5,3.76006]
[1724413190651,3.7594,2660.0,2659.4,6.07263]
[1724413190848,3.7594,2660.0,2659.4,7.055921]
[1724413190849,7.51888,2660.0,2659.4,7.055921]
[1724413191051,3.7595,2660.0,2659.3,3.76028]
[1724413191255,6.05953,2659.8,2659.3,3.76028]
[1724413191453,9.81929,2659.8,2659.3,3.76028]
[1724413191658,6.05953,2659.8,2659.3,3.76028]
[1724413192033,9.81933,2659.8,2659.3,3.76028]
[1724413192652,6.05953,2659.8,2659.2,2.3708]
[1724413192814,6.05953,2659.8,2659.3,3.76036]
[1724413193023,9.81929,2659.8,2659.3,3.76036]
[1724413193225,6.05953,2659.8,2659.3,3.76036]
[1724413193517,9.81931,2659.8,2659.3,3.76036]
[1724413193771,9.8193,2659.8,2659.3,3.76036]
[1724413194078,9.8193,2659.8,2659.2,7.420516]
[1724413194079,3.75985,2659.7,2659.2,7.420516]
[1724413194281,3.75985,2659.7,2659.2,5.049716]
[1724413194551,3.75985,2659.7,2659.2,3.76051]
[1724413194914,3.75985,2659.7,2659.3,3.76038]
[1724413195419,6.1268,2660.0,2659.3,3.76038]
[1724413196421,3.7597,2659.8,2659.3,3.76038]
[1724413196621,2.3673,2660.0,2659.4,2.644838]
[1724413196822,2.3673,2660.0,2659.6,3.75985]
[1724413198132,2.4057,2659.6,2659.1,3.76066]
[1724413198343,6.16577,2659.6,2659.1,3.76066]
[1724413198743,6.16577,2659.6,2659.1,7.52125]
[1724413198949,6.16577,2659.6,2659.1,3.76059]
[1724413199129,6.16577,2659.6,2659.1,3.76058]
[1724413200138,9.92584,2659.6,2659.1,3.76058]
[1724413200324,6.16577,2659.6,2659.1,4.512723]
[1724413200774,9.92583,2659.6,2659.1,4.512723]
[1724413200978,3.7601,2659.5,2659.1,4.512723]
[1724413201190,3.7601,2659.5,2658.9,3.76085]
[1724413201548,3.7601,2659.5,2659.0,3.76076]
[1724413202428,6.16576,2659.6,2659.0,3.76076]
[1724413202626,6.02578,2659.8,2659.1,4.136666]
[1724413202866,3.75996,2659.6,2659.2,2.4657]
[1724413203593,7.52,2659.6,2659.2,2.4657]
[1724413204127,3.76013,2659.5,2659.2,2.4657]
[1724413204985,3.75996,2659.6,2659.2,2.4657]
[1724413205297,6.04123,2659.5,2659.1,0.376076]
[1724413205468,3.76062,2659.2,2658.8,7.49]
[1724413205669,3.76062,2659.2,2658.7,3.76122]
[1724413205845,3.76062,2659.2,2658.8,3.76109]
[1724413207746,3.76083,2659.0,2658.6,3.76129]
[1724413208632,2.2717,2659.1,2658.6,3.76129]
[1724413208833,6.03241,2659.1,2658.6,6.78378322]
[1724413209779,2.2717,2659.1,2658.6,6.78378322]
[1724413210095,7.52175,2659.0,2658.5,3.76149]
[1724413211069,3.76082,2659.0,2658.5,3.76149]
[1724413211565,6.03241,2659.1,2658.6,3.76136]
[1724413211742,9.8773,2659.4,2658.8,3.76101]
[1724413211950,3.76053,2659.2,2658.8,3.76108]
[1724413215041,3.76053,2659.2,2658.6,3.76127]
[1724413215042,3.76053,2659.2,2658.7,3.76123]
[1724413215577,7.52114,2659.2,2658.7,3.76123]
[1724413216839,7.52116,2659.2,2658.7,3.76123]
[1724413217401,3.76067,2659.1,2658.7,3.76123]
[1724413218573,3.76055,2659.2,2658.8,2.3499]
[1724413219289,3.76039,2659.3,2658.8,6.11097]
[1724413220246,7.52038,2659.5,2658.9,3.76094]
[1724413220442,3.76028,2659.4,2658.9,3.76094]
[1724413221056,3.76016,2659.5,2659.0,3.7607]
[1724413221383,3.75991,2659.7,2659.2,6.13999]
[1724413221384,3.75989,2659.7,2659.2,6.13999]
[1724413221747,7.51981,2659.7,2659.2,6.13999]
[1724413222148,3.75997,2659.6,2659.2,6.13999]
[1724413222356,3.75983,2659.7,2659.3,0.6892154]
[1724413222870,6.10235,2659.9,2659.3,0.6892154]
[1724413223060,9.86198,2659.9,2659.4,3.76019]
[1724413223471,3.7597,2659.8,2659.3,4.4495954]
[1724413224085,3.7595,2660.0,2659.4,3.76022]
[1724413224411,3.75955,2659.9,2659.4,4.81912054]
[1724413225370,9.96402,2660.1,2659.4,4.81912054]
[1724413225572,9.96402,2660.1,2659.6,2.2799]
[1724413225775,3.75941,2660.0,2659.6,2.2799]